[Event "Titled Tuesday Blitz July 13 2021"]
[White "Dobrowolski, Piotr"]
[Black "Srihari L R"]
[WhiteFideId "1106236"]
[BlackFideId "46617116"]
[WhiteElo "2304"]
[BlackElo "2121"]
[Result "1-0"]
[Round "08"]
[TimeControl "180+1"]
[Date "2021.07.13"]
[WhiteClock "0:01:05"]
[BlackClock "0:00:01"]

1. e4 {[%clk 0:03:00]}  c5 {[%clk 0:02:57]} 2. c3 {[%clk 0:02:59]}  Nf6 {[%clk 0:02:56]} 3. e5 {[%clk 0:02:59]}  Nd5 {[%clk 0:02:56]} 4. d4 {[%clk 0:02:59]}  cxd4 {[%clk 0:02:55]} 5. Nf3 {[%clk 0:02:59]}  d6 {[%clk 0:02:55]} 6. cxd4 {[%clk 0:02:58]}  Nc6 {[%clk 0:02:54]} 7. Bc4 {[%clk 0:02:58]}  Nb6 {[%clk 0:02:49]} 8. Bb5 {[%clk 0:02:58]}  dxe5 {[%clk 0:02:47]} 9. Nxe5 {[%clk 0:02:58]}  Bd7 {[%clk 0:02:45]} 10. Nc3 {[%clk 0:02:59]}  Nxe5 {[%clk 0:02:44]} 11. dxe5 {[%clk 0:03:00]}  Bxb5 {[%clk 0:02:44]} 12. Nxb5 {[%clk 0:03:00]}  Qxd1+ {[%clk 0:02:43]} 13. Kxd1 {[%clk 0:03:01]}  O-O-O {[%clk 0:02:41]} 14. Ke2 {[%clk 0:03:01]}  a6 {[%clk 0:02:40]} 15. Be3 {[%clk 0:02:51]}  Nd5 {[%clk 0:02:38]} 16. Rac1+ {[%clk 0:02:44]}  Kb8 {[%clk 0:02:38]} 17. Ba7+ {[%clk 0:02:24]}  Ka8 {[%clk 0:02:30]} 18. Rhd1 {[%clk 0:02:23]}  axb5 {[%clk 0:01:49]} 19. Bb6 {[%clk 0:02:22]}  Nxb6 {[%clk 0:01:36]} 20. Rxd8+ {[%clk 0:02:22]}  Ka7 {[%clk 0:01:36]} 21. b3 {[%clk 0:02:22]}  g6 {[%clk 0:01:35]} 22. Rc7 {[%clk 0:02:18]}  Bg7 {[%clk 0:01:18]} 23. Rxh8 {[%clk 0:02:16]}  Bxh8 {[%clk 0:01:15]} 24. Rxe7 {[%clk 0:02:16]}  Nd5 {[%clk 0:01:12]} 25. Rxf7 {[%clk 0:02:12]}  Bxe5 {[%clk 0:01:11]} 26. Rxh7 {[%clk 0:02:09]}  Nc3+ {[%clk 0:01:11]} 27. Kd3 {[%clk 0:02:07]}  Nxa2 {[%clk 0:01:11]} 28. h4 {[%clk 0:01:59]}  Nc1+ {[%clk 0:01:05]} 29. Kc2 {[%clk 0:01:56]}  Ne2 {[%clk 0:01:04]} 30. h5 {[%clk 0:01:56]}  gxh5 {[%clk 0:01:03]} 31. Rxh5 {[%clk 0:01:55]}  Bc7 {[%clk 0:01:00]} 32. g4 {[%clk 0:01:49]}  Bb6 {[%clk 0:00:47]} 33. g5 {[%clk 0:01:38]}  Bxf2 {[%clk 0:00:13]} 34. Rh2 {[%clk 0:01:34]}  Nd4+ {[%clk 0:00:06]} 35. Kd3 {[%clk 0:01:33]}  Bg1 {[%clk 0:00:05]} 36. Rg2 {[%clk 0:01:28]}  Nf3 {[%clk 0:00:04]} 37. Rxg1 {[%clk 0:01:05]}  Nxg1 {[%clk 0:00:02]} 38. g6 {[%clk 0:01:05]}  Nh3 {[%clk 0:00:01]} 39. g7 {[%clk 0:01:05]} 1-0


[Site "https://www.chess.com"]

[Event "Titled Tuesday Blitz July 13 2021"]
[White "Dolzhykova, Kateryna"]
[Black "Mortazavi, Ali"]
[WhiteFideId "14113414"]
[BlackFideId "401323"]
[WhiteElo "2151"]
[BlackElo "2339"]
[Result "0-1"]
[Round "08"]
[TimeControl "180+1"]
[Date "2021.07.13"]
[WhiteClock "0:00:03"]
[BlackClock "0:00:10"]

1. e4 {[%clk 0:03:00]}  c6 {[%clk 0:03:00]} 2. Ne2 {[%clk 0:02:59]}  d5 {[%clk 0:02:53]} 3. e5 {[%clk 0:02:59]}  d4 {[%clk 0:02:52]} 4. d3 {[%clk 0:02:58]}  c5 {[%clk 0:02:31]} 5. Nd2 {[%clk 0:02:51]}  Nc6 {[%clk 0:02:29]} 6. f4 {[%clk 0:02:51]}  h5 {[%clk 0:02:24]} 7. Ne4 {[%clk 0:02:23]}  b6 {[%clk 0:02:23]} 8. Ng1 {[%clk 0:02:18]}  h4 {[%clk 0:02:13]} 9. Be2 {[%clk 0:02:16]}  Nh6 {[%clk 0:02:10]} 10. Bf3 {[%clk 0:02:13]}  Qc7 {[%clk 0:02:03]} 11. Bd2 {[%clk 0:02:09]}  e6 {[%clk 0:01:57]} 12. Qe2 {[%clk 0:02:08]}  Bb7 {[%clk 0:01:56]} 13. O-O-O {[%clk 0:02:07]}  Nf5 {[%clk 0:01:17]} 14. Nh3 {[%clk 0:02:06]}  Be7 {[%clk 0:01:16]} 15. Nhf2 {[%clk 0:02:05]}  a5 {[%clk 0:01:14]} 16. g4 {[%clk 0:02:01]}  Ne3 {[%clk 0:01:10]} 17. Bxe3 {[%clk 0:01:57]}  dxe3 {[%clk 0:01:11]} 18. Qxe3 {[%clk 0:01:58]}  Nd4 {[%clk 0:01:11]} 19. c3 {[%clk 0:01:54]}  Nxf3 {[%clk 0:01:10]} 20. Qxf3 {[%clk 0:01:55]}  b5 {[%clk 0:01:11]} 21. Rhe1 {[%clk 0:01:40]}  a4 {[%clk 0:01:10]} 22. g5 {[%clk 0:01:26]}  a3 {[%clk 0:01:05]} 23. b3 {[%clk 0:01:26]}  Rd8 {[%clk 0:01:04]} 24. Kb1 {[%clk 0:01:22]}  b4 {[%clk 0:00:41]} 25. c4 {[%clk 0:01:16]}  Rd4 {[%clk 0:00:41]} 26. g6 {[%clk 0:01:15]}  fxg6 {[%clk 0:00:41]} 27. Qg4 {[%clk 0:01:13]}  Kf7 {[%clk 0:00:35]} 28. Rg1 {[%clk 0:01:10]}  Rh6 {[%clk 0:00:35]} 29. Qe2 {[%clk 0:00:43]}  Qd7 {[%clk 0:00:35]} 30. Ng4 {[%clk 0:00:41]}  Rh5 {[%clk 0:00:33]} 31. Rgf1 {[%clk 0:00:24]}  Kg8 {[%clk 0:00:33]} 32. h3 {[%clk 0:00:17]}  Bc6 {[%clk 0:00:32]} 33. Nh2 {[%clk 0:00:16]}  Qd8 {[%clk 0:00:28]} 34. Nf3 {[%clk 0:00:16]}  Rd7 {[%clk 0:00:28]} 35. Nfg5 {[%clk 0:00:15]}  Bxg5 {[%clk 0:00:26]} 36. Nxg5 {[%clk 0:00:16]}  Qe7 {[%clk 0:00:20]} 37. Rg1 {[%clk 0:00:14]}  Rd4 {[%clk 0:00:20]} 38. Rdf1 {[%clk 0:00:09]}  Qd7 {[%clk 0:00:20]} 39. Kc2 {[%clk 0:00:07]}  Kf8 {[%clk 0:00:20]} 40. Ne4 {[%clk 0:00:04]}  Bxe4 {[%clk 0:00:20]} 41. dxe4 {[%clk 0:00:05]}  Qc6 {[%clk 0:00:17]} 42. Re1 {[%clk 0:00:03]}  Kf7 {[%clk 0:00:17]} 43. Rgf1 {[%clk 0:00:03]}  Kg8 {[%clk 0:00:17]} 44. Rf3 {[%clk 0:00:03]}  Kh7 {[%clk 0:00:17]} 45. Re3 {[%clk 0:00:04]}  g5 {[%clk 0:00:18]} 46. f5 {[%clk 0:00:03]}  Rh6 {[%clk 0:00:17]} 47. fxe6 {[%clk 0:00:03]}  Qxe6 {[%clk 0:00:16]} 48. Rd1 {[%clk 0:00:04]}  Qxe5 {[%clk 0:00:17]} 49. Rxd4 {[%clk 0:00:03]}  Qxd4 {[%clk 0:00:17]} 50. Rd3 {[%clk 0:00:04]}  Qb2+ {[%clk 0:00:17]} 51. Kd1 {[%clk 0:00:04]}  Qb1+ {[%clk 0:00:18]} 52. Kd2 {[%clk 0:00:04]}  Qxa2+ {[%clk 0:00:18]} 53. Ke1 {[%clk 0:00:05]}  Qa1+ {[%clk 0:00:18]} 54. Kf2 {[%clk 0:00:05]}  Rf6+ {[%clk 0:00:17]} 55. Kg2 {[%clk 0:00:05]}  Qe5 {[%clk 0:00:16]} 56. Qh5+ {[%clk 0:00:04]}  Rh6 {[%clk 0:00:14]} 57. Qe2 {[%clk 0:00:04]}  g4 {[%clk 0:00:13]} 58. hxg4 {[%clk 0:00:04]}  Qg5 {[%clk 0:00:11]} 59. e5 {[%clk 0:00:04]}  Rg6 {[%clk 0:00:10]} 60. Kh3 {[%clk 0:00:04]}  Qc1 {[%clk 0:00:10]} 61. e6 {[%clk 0:00:04]}  Qh1+ {[%clk 0:00:09]} 62. Qh2 {[%clk 0:00:04]}  Qf1+ {[%clk 0:00:10]} 63. Qg2 {[%clk 0:00:05]}  Qxd3+ {[%clk 0:00:10]} 64. Kxh4 {[%clk 0:00:05]}  Rh6+ {[%clk 0:00:10]} 65. Kg5 {[%clk 0:00:06]}  Rxe6 {[%clk 0:00:09]} 66. Qh2+ {[%clk 0:00:05]}  Rh6 {[%clk 0:00:09]} 67. Qb8 {[%clk 0:00:05]}  Qg6+ {[%clk 0:00:09]} 68. Kf4 {[%clk 0:00:05]}  a2 {[%clk 0:00:09]} 69. Qa8 {[%clk 0:00:06]}  Qf6+ {[%clk 0:00:09]} 70. Kg3 {[%clk 0:00:05]}  a1=Q {[%clk 0:00:10]} 71. Qe4+ {[%clk 0:00:05]}  Qg6 {[%clk 0:00:10]} 72. Qe7 {[%clk 0:00:05]}  Qc3+ {[%clk 0:00:09]} 73. Kf2 {[%clk 0:00:04]}  Qgc2+ {[%clk 0:00:09]} 74. Kf1 {[%clk 0:00:03]}  Rh1# {[%clk 0:00:10]} 0-1


[Site "https://www.chess.com"]

[Event "Titled Tuesday Blitz July 13 2021"]
[White "Estrada Nieto, Julian"]
[Black "Pert, Richard G"]
[WhiteFideId "5101018"]
[BlackFideId "404748"]
[WhiteElo "2270"]
[BlackElo "2441"]
[Result "0-1"]
[Round "08"]
[TimeControl "180+1"]
[Date "2021.07.13"]
[WhiteClock "0:00:03"]
[BlackClock "0:00:16"]

1. e4 {[%clk 0:02:47]}  c5 {[%clk 0:02:57]} 2. Nf3 {[%clk 0:02:46]}  d6 {[%clk 0:02:56]} 3. Bb5+ {[%clk 0:02:45]}  Nc6 {[%clk 0:02:48]} 4. O-O {[%clk 0:02:43]}  Nf6 {[%clk 0:02:46]} 5. Re1 {[%clk 0:02:42]}  Bd7 {[%clk 0:02:43]} 6. h3 {[%clk 0:02:37]}  g6 {[%clk 0:02:40]} 7. c3 {[%clk 0:02:35]}  Ne5 {[%clk 0:02:40]} 8. Bxd7+ {[%clk 0:02:32]}  Nfxd7 {[%clk 0:02:37]} 9. d4 {[%clk 0:02:31]}  Nxf3+ {[%clk 0:02:35]} 10. Qxf3 {[%clk 0:02:31]}  Bg7 {[%clk 0:02:36]} 11. Be3 {[%clk 0:02:00]}  O-O {[%clk 0:02:34]} 12. Nd2 {[%clk 0:01:59]}  cxd4 {[%clk 0:02:32]} 13. cxd4 {[%clk 0:01:58]}  Rc8 {[%clk 0:02:20]} 14. Rec1 {[%clk 0:01:50]}  Qa5 {[%clk 0:02:15]} 15. Nc4 {[%clk 0:01:42]}  Qa6 {[%clk 0:02:07]} 16. Qe2 {[%clk 0:01:22]}  Nb6 {[%clk 0:01:55]} 17. b3 {[%clk 0:01:19]}  d5 {[%clk 0:01:54]} 18. exd5 {[%clk 0:01:17]}  Nxd5 {[%clk 0:01:55]} 19. Kf1 {[%clk 0:01:02]}  Rfd8 {[%clk 0:01:36]} 20. a3 {[%clk 0:00:47]}  Qf6 {[%clk 0:01:26]} 21. Kg1 {[%clk 0:00:42]}  Nf4 {[%clk 0:01:17]} 22. Bxf4 {[%clk 0:00:39]}  Qxf4 {[%clk 0:01:17]} 23. Qxe7 {[%clk 0:00:23]}  Bxd4 {[%clk 0:01:15]} 24. Ne3 {[%clk 0:00:16]}  Bxa1 {[%clk 0:01:07]} 25. Rxa1 {[%clk 0:00:14]}  Qc7 {[%clk 0:00:57]} 26. Qe4 {[%clk 0:00:10]}  Re8 {[%clk 0:00:53]} 27. Qh4 {[%clk 0:00:09]}  Qe7 {[%clk 0:00:49]} 28. Qh6 {[%clk 0:00:08]}  Rc5 {[%clk 0:00:30]} 29. Rf1 {[%clk 0:00:06]}  Qg5 {[%clk 0:00:28]} 30. Qxg5 {[%clk 0:00:04]}  Rxg5 {[%clk 0:00:29]} 31. Nc4 {[%clk 0:00:02]}  Rd5 {[%clk 0:00:27]} 32. a4 {[%clk 0:00:01]}  Kg7 {[%clk 0:00:25]} 33. Rc1 {[%clk 0:00:02]}  b6 {[%clk 0:00:25]} 34. Kf1 {[%clk 0:00:01]}  h5 {[%clk 0:00:24]} 35. Ne3 {[%clk 0:00:02]}  Rd3 {[%clk 0:00:24]} 36. Rb1 {[%clk 0:00:01]}  Rc8 {[%clk 0:00:23]} 37. Ke2 {[%clk 0:00:02]}  Rcc3 {[%clk 0:00:20]} 38. Rb2 {[%clk 0:00:02]}  Rxb3 {[%clk 0:00:20]} 39. Rc2 {[%clk 0:00:02]}  Rdc3 {[%clk 0:00:20]} 40. Rd2 {[%clk 0:00:02]}  Ra3 {[%clk 0:00:20]} 41. Rd7 {[%clk 0:00:02]}  Rxa4 {[%clk 0:00:19]} 42. Kf3 {[%clk 0:00:02]}  Rb3 {[%clk 0:00:19]} 43. g4 {[%clk 0:00:02]}  hxg4+ {[%clk 0:00:18]} 44. hxg4 {[%clk 0:00:03]}  a5 {[%clk 0:00:17]} 45. g5 {[%clk 0:00:03]}  Rb5 {[%clk 0:00:16]} 0-1


[Site "https://www.chess.com"]

[Event "Titled Tuesday Blitz July 13 2021"]
[White "FGHSMN"]
[Black "Przybylski, Wojciech"]
[BlackFideId "1117599"]
[WhiteElo "2501"]
[BlackElo "2317"]
[Result "1-0"]
[Round "08"]
[TimeControl "180+1"]
[Date "2021.07.13"]
[WhiteClock "0:00:07"]
[BlackClock "0:00:01"]

1. e4 {[%clk 0:03:00]}  c5 {[%clk 0:02:59]} 2. Nf3 {[%clk 0:02:59]}  d6 {[%clk 0:02:59]} 3. Bb5+ {[%clk 0:02:55]}  Bd7 {[%clk 0:02:58]} 4. Bxd7+ {[%clk 0:02:55]}  Qxd7 {[%clk 0:02:58]} 5. c4 {[%clk 0:02:55]}  Nf6 {[%clk 0:02:57]} 6. Nc3 {[%clk 0:02:54]}  Nc6 {[%clk 0:02:56]} 7. d4 {[%clk 0:02:53]}  cxd4 {[%clk 0:02:55]} 8. Nxd4 {[%clk 0:02:54]}  e6 {[%clk 0:02:53]} 9. O-O {[%clk 0:02:49]}  Be7 {[%clk 0:02:53]} 10. Be3 {[%clk 0:02:50]}  O-O {[%clk 0:02:53]} 11. f3 {[%clk 0:02:49]}  Rac8 {[%clk 0:02:49]} 12. Re1 {[%clk 0:02:40]}  a6 {[%clk 0:02:46]} 13. a4 {[%clk 0:02:38]}  Rfe8 {[%clk 0:01:57]} 14. Rc1 {[%clk 0:02:32]}  Ne5 {[%clk 0:01:44]} 15. b3 {[%clk 0:02:30]}  d5 {[%clk 0:01:35]} 16. cxd5 {[%clk 0:01:58]}  exd5 {[%clk 0:01:28]} 17. Nxd5 {[%clk 0:01:49]}  Nxd5 {[%clk 0:01:25]} 18. Rxc8 {[%clk 0:01:48]}  Rxc8 {[%clk 0:01:20]} 19. exd5 {[%clk 0:01:49]}  Qxd5 {[%clk 0:01:04]} 20. Nf5 {[%clk 0:01:33]}  Qxd1 {[%clk 0:00:57]} 21. Rxd1 {[%clk 0:01:22]}  Bf8 {[%clk 0:00:51]} 22. Bd4 {[%clk 0:01:14]}  Nc6 {[%clk 0:00:46]} 23. Bb2 {[%clk 0:01:08]}  Rd8 {[%clk 0:00:45]} 24. Rxd8 {[%clk 0:00:59]}  Nxd8 {[%clk 0:00:45]} 25. Kf2 {[%clk 0:00:59]}  f6 {[%clk 0:00:45]} 26. h4 {[%clk 0:00:55]}  Kf7 {[%clk 0:00:45]} 27. h5 {[%clk 0:00:54]}  g6 {[%clk 0:00:43]} 28. Ne3 {[%clk 0:00:49]}  gxh5 {[%clk 0:00:30]} 29. Nd5 {[%clk 0:00:46]}  Bg7 {[%clk 0:00:27]} 30. Kg3 {[%clk 0:00:38]}  Ne6 {[%clk 0:00:26]} 31. b4 {[%clk 0:00:34]}  f5 {[%clk 0:00:18]} 32. Bxg7 {[%clk 0:00:32]}  Kxg7 {[%clk 0:00:19]} 33. Kh4 {[%clk 0:00:31]}  Kg6 {[%clk 0:00:16]} 34. Ne7+ {[%clk 0:00:17]}  Kf6 {[%clk 0:00:16]} 35. Nc8 {[%clk 0:00:16]}  Nf4 {[%clk 0:00:07]} 36. g3 {[%clk 0:00:16]}  Ne2 {[%clk 0:00:07]} 37. Nd6 {[%clk 0:00:15]}  b6 {[%clk 0:00:04]} 38. Nc8 {[%clk 0:00:15]}  b5 {[%clk 0:00:04]} 39. a5 {[%clk 0:00:14]}  Nd4 {[%clk 0:00:03]} 40. Na7 {[%clk 0:00:08]}  Nc2 {[%clk 0:00:03]} 41. Nc6 {[%clk 0:00:07]}  Kg6 {[%clk 0:00:01]} 42. Ne7+ {[%clk 0:00:07]}  Kf6 {[%clk 0:00:01]} 43. Nc6 {[%clk 0:00:07]}  Kg6 {[%clk 0:00:01]} 44. f4 {[%clk 0:00:07]}  Kf6 {[%clk 0:00:01]} 45. Kxh5 {[%clk 0:00:08]}  Ne3 {[%clk 0:00:02]} 46. Kh6 {[%clk 0:00:08]}  Nd5 {[%clk 0:00:02]} 47. Kxh7 {[%clk 0:00:07]}  Ne3 {[%clk 0:00:01]} 48. Nb8 {[%clk 0:00:07]} 1-0


[Site "https://www.chess.com"]

[Event "Titled Tuesday Blitz July 13 2021"]
[White "Gabrielian, Artur"]
[Black "Borsuk, Konstantin"]
[WhiteFideId "4131002"]
[BlackFideId "14113406"]
[WhiteElo "2523"]
[BlackElo "2363"]
[Result "1/2-1/2"]
[Round "08"]
[TimeControl "180+1"]
[Date "2021.07.13"]
[WhiteClock "0:00:20"]
[BlackClock "0:00:27"]

1. e4 {[%clk 0:03:00]}  e6 {[%clk 0:02:59]} 2. d4 {[%clk 0:03:00]}  d5 {[%clk 0:02:57]} 3. Nd2 {[%clk 0:03:00]}  Nf6 {[%clk 0:02:55]} 4. e5 {[%clk 0:03:00]}  Nfd7 {[%clk 0:02:56]} 5. Bd3 {[%clk 0:03:00]}  c5 {[%clk 0:02:56]} 6. c3 {[%clk 0:03:01]}  Nc6 {[%clk 0:02:57]} 7. Ne2 {[%clk 0:03:01]}  b6 {[%clk 0:02:57]} 8. O-O {[%clk 0:03:00]}  cxd4 {[%clk 0:02:57]} 9. cxd4 {[%clk 0:03:00]}  Nb4 {[%clk 0:02:58]} 10. Bb1 {[%clk 0:02:56]}  Ba6 {[%clk 0:02:58]} 11. Nf3 {[%clk 0:02:54]}  Be7 {[%clk 0:02:54]} 12. a3 {[%clk 0:02:53]}  Nc6 {[%clk 0:02:54]} 13. Re1 {[%clk 0:02:52]}  Qc7 {[%clk 0:02:51]} 14. Ng3 {[%clk 0:02:51]}  O-O-O {[%clk 0:02:46]} 15. Bg5 {[%clk 0:02:45]}  Kb8 {[%clk 0:02:43]} 16. Bxe7 {[%clk 0:02:38]}  Nxe7 {[%clk 0:02:44]} 17. Bd3 {[%clk 0:02:37]}  Bxd3 {[%clk 0:02:37]} 18. Qxd3 {[%clk 0:02:38]}  Rc8 {[%clk 0:02:34]} 19. Ng5 {[%clk 0:02:30]}  Qc2 {[%clk 0:02:15]} 20. Qb5 {[%clk 0:02:25]}  Nc6 {[%clk 0:02:12]} 21. Nxf7 {[%clk 0:02:22]}  Rhf8 {[%clk 0:02:09]} 22. Rac1 {[%clk 0:02:22]}  Nxd4 {[%clk 0:01:57]} 23. Rxc2 {[%clk 0:02:19]}  Nxb5 {[%clk 0:01:56]} 24. Rxc8+ {[%clk 0:02:19]}  Rxc8 {[%clk 0:01:47]} 25. Ng5 {[%clk 0:02:11]}  d4 {[%clk 0:01:37]} 26. Nxe6 {[%clk 0:02:01]}  d3 {[%clk 0:01:35]} 27. Nf1 {[%clk 0:02:01]}  Re8 {[%clk 0:01:28]} 28. Nxg7 {[%clk 0:01:58]}  Rxe5 {[%clk 0:01:27]} 29. Rxe5 {[%clk 0:01:57]}  Nxe5 {[%clk 0:01:28]} 30. Nd2 {[%clk 0:01:52]}  Nd6 {[%clk 0:01:29]} 31. Kf1 {[%clk 0:01:41]}  Nec4 {[%clk 0:01:23]} 32. Ke1 {[%clk 0:01:41]}  Nxb2 {[%clk 0:01:22]} 33. f4 {[%clk 0:01:37]}  Kc7 {[%clk 0:01:22]} 34. Ne6+ {[%clk 0:01:28]}  Kd7 {[%clk 0:01:21]} 35. Ng5 {[%clk 0:01:29]}  h6 {[%clk 0:01:20]} 36. Ngf3 {[%clk 0:01:28]}  Ke6 {[%clk 0:01:08]} 37. g4 {[%clk 0:01:28]}  Kd5 {[%clk 0:01:08]} 38. h4 {[%clk 0:01:26]}  Nbc4 {[%clk 0:01:07]} 39. g5 {[%clk 0:01:26]}  hxg5 {[%clk 0:01:07]} 40. fxg5 {[%clk 0:01:26]}  Nxa3 {[%clk 0:01:00]} 41. h5 {[%clk 0:01:26]}  Nc2+ {[%clk 0:00:56]} 42. Kf2 {[%clk 0:01:25]}  Ke6 {[%clk 0:00:52]} 43. h6 {[%clk 0:01:25]}  Kf5 {[%clk 0:00:46]} 44. h7 {[%clk 0:01:07]}  Nf7 {[%clk 0:00:45]} 45. Nc4 {[%clk 0:01:07]}  Nh8 {[%clk 0:00:41]} 46. Nd6+ {[%clk 0:01:00]}  Kg6 {[%clk 0:00:38]} 47. Ne5+ {[%clk 0:00:33]}  Kxh7 {[%clk 0:00:38]} 48. Nxd3 {[%clk 0:00:34]}  a5 {[%clk 0:00:38]} 49. Nc4 {[%clk 0:00:28]}  a4 {[%clk 0:00:33]} 50. Nxb6 {[%clk 0:00:26]}  a3 {[%clk 0:00:33]} 51. Nc1 {[%clk 0:00:26]}  Kg6 {[%clk 0:00:31]} 52. Nc4 {[%clk 0:00:23]}  Kxg5 {[%clk 0:00:31]} 53. Ke2 {[%clk 0:00:21]}  a2 {[%clk 0:00:28]} 54. Nxa2 {[%clk 0:00:21]}  Nd4+ {[%clk 0:00:28]} 55. Kd3 {[%clk 0:00:21]}  Nf5 {[%clk 0:00:28]} 56. Nc3 {[%clk 0:00:21]}  Nf7 {[%clk 0:00:27]} 57. Ne4+ {[%clk 0:00:20]}  Kf4 {[%clk 0:00:27]} 58. Nc5 {[%clk 0:00:20]}  Ne5+ {[%clk 0:00:26]} 59. Nxe5 {[%clk 0:00:20]}  Kxe5 {[%clk 0:00:27]} 1/2-1/2


[Site "https://www.chess.com"]

[Event "Titled Tuesday Blitz July 13 2021"]
[White "Gurevich, Dmitry"]
[Black "Aradhya, Garg"]
[WhiteFideId "2000407"]
[BlackFideId "25006746"]
[WhiteElo "2506"]
[BlackElo "2146"]
[Result "1-0"]
[Round "08"]
[TimeControl "180+1"]
[Date "2021.07.13"]
[WhiteClock "0:00:07"]
[BlackClock "0:00:08"]

1. d4 {[%clk 0:03:00]}  d5 {[%clk 0:03:00]} 2. c4 {[%clk 0:03:00]}  c6 {[%clk 0:03:00]} 3. Nf3 {[%clk 0:02:56]}  Nf6 {[%clk 0:03:00]} 4. e3 {[%clk 0:02:56]}  Bf5 {[%clk 0:02:58]} 5. Nc3 {[%clk 0:02:56]}  e6 {[%clk 0:02:58]} 6. Bd3 {[%clk 0:02:56]}  Bg6 {[%clk 0:02:58]} 7. O-O {[%clk 0:02:54]}  Nbd7 {[%clk 0:02:57]} 8. b3 {[%clk 0:02:46]}  Bd6 {[%clk 0:02:56]} 9. Bb2 {[%clk 0:02:45]}  Qb8 {[%clk 0:02:53]} 10. h3 {[%clk 0:02:42]}  a5 {[%clk 0:02:48]} 11. Qc2 {[%clk 0:02:37]}  Bxd3 {[%clk 0:02:32]} 12. Qxd3 {[%clk 0:02:36]}  O-O {[%clk 0:02:32]} 13. e4 {[%clk 0:02:36]}  dxe4 {[%clk 0:02:32]} 14. Nxe4 {[%clk 0:02:35]}  Nxe4 {[%clk 0:02:32]} 15. Qxe4 {[%clk 0:02:35]}  Re8 {[%clk 0:02:25]} 16. Ne5 {[%clk 0:02:32]}  Nxe5 {[%clk 0:02:20]} 17. dxe5 {[%clk 0:02:32]}  Bc5 {[%clk 0:02:20]} 18. Kh1 {[%clk 0:02:12]}  Qa7 {[%clk 0:02:13]} 19. f4 {[%clk 0:02:10]}  a4 {[%clk 0:02:11]} 20. f5 {[%clk 0:02:05]}  exf5 {[%clk 0:02:11]} 21. Qxf5 {[%clk 0:02:02]}  Re7 {[%clk 0:02:11]} 22. Rad1 {[%clk 0:01:51]}  axb3 {[%clk 0:02:09]} 23. axb3 {[%clk 0:01:51]}  Qb6 {[%clk 0:02:08]} 24. Rd3 {[%clk 0:01:38]}  Rf8 {[%clk 0:01:59]} 25. Rg3 {[%clk 0:01:35]}  Re6 {[%clk 0:01:51]} 26. h4 {[%clk 0:01:28]}  Rg6 {[%clk 0:01:50]} 27. Rd3 {[%clk 0:01:11]}  Re6 {[%clk 0:01:20]} 28. h5 {[%clk 0:01:08]}  g6 {[%clk 0:01:09]} 29. Qg4 {[%clk 0:01:03]}  Qc7 {[%clk 0:01:01]} 30. Rdf3 {[%clk 0:01:01]}  Qd8 {[%clk 0:00:32]} 31. g3 {[%clk 0:00:52]}  Qc8 {[%clk 0:00:21]} 32. Bc3 {[%clk 0:00:48]}  Rxe5 {[%clk 0:00:20]} 33. Qxc8 {[%clk 0:00:42]}  Rxh5+ {[%clk 0:00:20]} 34. Kg2 {[%clk 0:00:42]}  Rxc8 {[%clk 0:00:20]} 35. Rxf7 {[%clk 0:00:42]}  Bf8 {[%clk 0:00:21]} 36. Rxb7 {[%clk 0:00:41]}  Re8 {[%clk 0:00:20]} 37. Rff7 {[%clk 0:00:28]}  Re2+ {[%clk 0:00:12]} 38. Kf3 {[%clk 0:00:27]}  Rc2 {[%clk 0:00:12]} 39. Bg7 {[%clk 0:00:24]}  Rf5+ {[%clk 0:00:11]} 40. Rxf5 {[%clk 0:00:23]}  gxf5 {[%clk 0:00:12]} 41. Bxf8 {[%clk 0:00:23]}  Kxf8 {[%clk 0:00:12]} 42. Rxh7 {[%clk 0:00:20]}  Rc3+ {[%clk 0:00:13]} 43. Kf4 {[%clk 0:00:20]}  Rxb3 {[%clk 0:00:12]} 44. Rh5 {[%clk 0:00:20]}  Rc3 {[%clk 0:00:11]} 45. Rxf5+ {[%clk 0:00:20]}  Ke7 {[%clk 0:00:12]} 46. c5 {[%clk 0:00:19]}  Ke6 {[%clk 0:00:12]} 47. g4 {[%clk 0:00:19]}  Rc4+ {[%clk 0:00:13]} 48. Kg5 {[%clk 0:00:19]}  Re4 {[%clk 0:00:12]} 49. Kh5 {[%clk 0:00:18]}  Rd4 {[%clk 0:00:11]} 50. Rg5 {[%clk 0:00:17]}  Re4 {[%clk 0:00:11]} 51. Rg6+ {[%clk 0:00:17]}  Kd5 {[%clk 0:00:11]} 52. Rg5+ {[%clk 0:00:16]}  Kd4 {[%clk 0:00:11]} 53. Rf5 {[%clk 0:00:15]}  Re1 {[%clk 0:00:08]} 54. g5 {[%clk 0:00:15]}  Ke4 {[%clk 0:00:06]} 55. Kg6 {[%clk 0:00:14]}  Rc1 {[%clk 0:00:05]} 56. Kf6 {[%clk 0:00:12]}  Ra1 {[%clk 0:00:04]} 57. Re5+ {[%clk 0:00:12]}  Kd4 {[%clk 0:00:03]} 58. g6 {[%clk 0:00:12]}  Ra7 {[%clk 0:00:02]} 59. Rg5 {[%clk 0:00:10]}  Rd7 {[%clk 0:00:02]} 60. g7 {[%clk 0:00:10]}  Rd8 {[%clk 0:00:03]} 61. g8=Q {[%clk 0:00:09]}  Rxg8 {[%clk 0:00:03]} 62. Rxg8 {[%clk 0:00:09]}  Kxc5 {[%clk 0:00:04]} 63. Ke5 {[%clk 0:00:10]}  Kc4 {[%clk 0:00:04]} 64. Kd6 {[%clk 0:00:09]}  c5 {[%clk 0:00:05]} 65. Rc8 {[%clk 0:00:10]}  Kd4 {[%clk 0:00:04]} 66. Rxc5 {[%clk 0:00:10]}  Ke4 {[%clk 0:00:05]} 67. Rd5 {[%clk 0:00:10]}  Ke3 {[%clk 0:00:05]} 68. Ke5 {[%clk 0:00:10]}  Kf3 {[%clk 0:00:06]} 69. Rd3+ {[%clk 0:00:09]}  Ke2 {[%clk 0:00:07]} 70. Ke4 {[%clk 0:00:09]}  Kf2 {[%clk 0:00:07]} 71. Re3 {[%clk 0:00:09]}  Kg2 {[%clk 0:00:07]} 72. Rf3 {[%clk 0:00:10]}  Kh2 {[%clk 0:00:07]} 73. Kf4 {[%clk 0:00:09]}  Kg2 {[%clk 0:00:07]} 74. Kg4 {[%clk 0:00:10]}  Kh2 {[%clk 0:00:07]} 75. Rf2+ {[%clk 0:00:09]}  Kh1 {[%clk 0:00:08]} 76. Kg3 {[%clk 0:00:09]}  Kg1 {[%clk 0:00:07]} 77. Rf8 {[%clk 0:00:08]}  Kh1 {[%clk 0:00:08]} 78. Rf1# {[%clk 0:00:07]} 1-0


[Site "https://www.chess.com"]